fUST/lending_fUST_20250522
["ID","MTS","AMOUNT","RATE_DAILY","PERIOD"]
[361872427,1747859435975,-534.95,0.00023957,2]
[361872428,1747859435986,-430.0,0.00023957,2]
[361872429,1747859435997,-430.0,0.00023957,2]
[361872430,1747859436007,-430.0,0.00023957,2]
[361872431,1747859436018,-430.0,0.00023957,2]
[361872432,1747859436028,-574.74,0.00023957,2]
[361872433,1747859436038,-430.0,0.00023957,2]
[361872434,1747859436048,-500.0,0.00023998,2]
[361872435,1747859436058,-500.0,0.00023998,2]
[361872436,1747859436068,-1500.0,0.00023998,2]
[361872437,1747859436078,-500.0,0.00023999,2]
[361872438,1747859436088,-500.0,0.00023999,2]
[361872439,1747859436098,-500.0,0.00023999,2]
[361872440,1747859436109,-563.28743316,0.00023999,2]
[361872441,1747859436118,-137469.73580055,0.00024,2]
[361872442,1747859436128,-151.0,0.00024,7]
[361872443,1747859436139,-297.956991,0.00024,7]
[361872444,1747859436149,-160.0,0.00024,7]
[361872445,1747859436159,-2102.7778143,0.00024003,10]
[361872446,1747859436169,-160.0,0.00024015,3]
[361872447,1747859436181,-500.0,0.00024056,2]
[361872448,1747859436191,-500.0,0.00024098,2]
[361872449,1747859436202,-3148.95120872,0.00024109,2]
[361872450,1747859436212,-430.0,0.00024109,2]
[361872451,1747859436223,-567.11,0.00024109,2]
[361872452,1747859436233,-536.01,0.00024109,2]
[361872453,1747859436244,-430.0,0.00024109,2]
[361872454,1747859436256,-430.0,0.00024109,2]
[361872455,1747859436267,-430.0,0.00024109,2]
[361872456,1747859436277,-261.06,0.00024109,2]
[361872457,1747859436287,-438.56,0.00024109,2]
[361872458,1747859436297,-430.0,0.00024109,2]
[361872459,1747859436307,-481.05345351,0.0002415,2]
[361872460,1747859436318,-167.0,0.00024164,7]
[361872461,1747859436328,-2102.7778143,0.00024176,10]
[361872462,1747859436337,-500.0,0.00024185,2]
[361872463,1747859436348,-500.0,0.00024185,2]
[361872464,1747859436358,-5000.0,0.00024185,2]
[361872465,1747859436368,-5000.0,0.00024185,2]
[361872466,1747859436378,-207.4,0.00024185,2]
[361872467,1747859436387,-151.0,0.00024185,2]
[361872468,1747859436397,-430.0,0.00024199,2]
[361872469,1747859436406,-1351.71,0.00024199,2]
[361872470,1747859436417,-390.46,0.00024228,2]
[361872471,1747859436428,-430.0,0.00024228,2]
[361872472,1747859436438,-430.0,0.00024229,2]
[361872473,1747859436447,-430.0,0.00024229,2]
[361872474,1747859436456,-473.4,0.00024229,2]
[361872475,1747859436466,-430.0,0.00024229,2]
[361872476,1747859436488,-430.0,0.00024229,2]
[361872477,1747859436500,-915.25,0.00024229,2]
[361872478,1747859436510,-430.0,0.00024229,2]
[361872479,1747859436520,-349.28,0.00024231,2]
[361872480,1747859436530,-534.95,0.00024231,2]
[361872481,1747859436541,-575.21,0.00024231,2]
[361872482,1747859436550,-430.0,0.00024231,2]
[361872483,1747859436561,-430.0,0.00024231,2]
[361872484,1747859436571,-430.0,0.00024231,2]
[361872485,1747859436581,-430.0,0.00024231,2]
[361872486,1747859436591,-1111.91658,0.00024231,7]
[361872487,1747859436601,-1111.91658,0.00024231,7]
[361872488,1747859436611,-403.786189,0.00024231,7]
[361872489,1747859436621,-403.786189,0.00024231,7]
[361872490,1747859436631,-151.0,0.00024231,7]
[361872491,1747859436640,-215.363336,0.00024231,7]
[361872492,1747859436650,-160.0,0.00024245,10]
[361872493,1747859436660,-500.0,0.00024296,2]
[361872494,1747859436670,-500.0,0.00024296,2]
[361872495,1747859436680,-500.0,0.00024339,2]
[361872496,1747859436690,-500.0,0.00024339,2]
[361872497,1747859436700,-151.0,0.0002434,7]
[361872498,1747859436710,-151.0,0.0002434,7]
[361872499,1747859436719,-151.0,0.0002434,7]
[361872500,1747859436729,-191.329652,0.0002434,7]
[361872501,1747859436739,-1696.439124,0.0002434,7]
[361872502,1747859436748,-1696.439124,0.0002434,7]
[361872503,1747859436758,-2102.7778143,0.00024348,11]
[361872504,1747859436767,-376.48,0.00024383,2]
[361872505,1747859436777,-567.11,0.00024383,2]
[361872506,1747859436787,-536.01,0.00024383,2]
[361872507,1747859436797,-430.0,0.00024383,2]
[361872508,1747859436808,-347.08,0.00024383,2]
[361872509,1747859436819,-500.8,0.00024383,2]
[361872510,1747859436829,-438.56,0.00024383,2]
[361872511,1747859436838,-430.0,0.00024383,2]
[361872512,1747859436849,-200.0,0.00024399,2]
[361872513,1747859436859,-481.05345351,0.000244,2]
[361872514,1747859436869,-68769.01,0.00024446,9]
[361872515,1747859436879,-26207.95,0.00024446,9]
[361872516,1747859436889,-288.24,0.00024473,2]
[361872517,1747859436899,-1351.71,0.00024473,2]
[361872518,1747859436908,-151.0,0.00024473,7]
[361872519,1747859436918,-191.31925,0.00024473,7]
[361872520,1747859436928,-191.31925,0.00024473,7]
[361872521,1747859436939,-153.010939,0.00024473,7]
[361872522,1747859436948,-153.010939,0.00024473,7]
[361872523,1747859437151,-430.0,0.00024502,2]
[361872524,1747859437162,-430.0,0.00024503,2]
[361872525,1747859437172,-430.0,0.00024503,2]
[361872526,1747859437183,-473.4,0.00024503,2]
[361872527,1747859437193,-210.09887933,0.00024503,2]
[361872528,1747859437203,-430.0,0.00024503,2]
[361872529,1747859437212,-915.25,0.00024503,2]
[361872530,1747859437222,-430.0,0.00024503,2]
[361872531,1747859437233,-500.0,0.00024504,2]
[361872532,1747859437243,-500.0,0.00024504,2]
[361872533,1747859437252,-534.95,0.00024505,2]
[361872534,1747859437262,-430.0,0.00024505,2]
[361872535,1747859437272,-300.12020832,0.00024505,2]
[361872536,1747859437286,-129.87979168,0.00024505,2]
[361872537,1747859437296,-430.0,0.00024505,2]
[361872538,1747859437305,-430.0,0.00024505,2]
[361872539,1747859437315,-2102.7778143,0.00024521,11]
[361872540,1747859437324,-500.0,0.00024546,2]
[361872541,1747859437334,-500.0,0.00024646,2]
[361872542,1747859437343,-481.05345351,0.0002465,2]
[361872543,1747859437355,-430.0,0.00024657,2]
[361872544,1747859437364,-500.0,0.00024657,2]
[361872545,1747859437375,-500.0,0.00024657,2]
[361872546,1747859437385,-567.11,0.00024657,2]
[361872547,1747859437395,-536.01,0.00024657,2]
[361872548,1747859437404,-430.0,0.00024657,2]
[361872549,1747859437414,-438.56,0.00024657,2]
[361872550,1747859437424,-430.0,0.00024657,2]
[361872551,1747859437434,-151.0,0.00024658,7]
[361872552,1747859437445,-151.0,0.00024658,7]
[361872553,1747859437454,-151.0,0.00024658,7]
[361872554,1747859437463,-344.754094,0.00024658,7]
[361872555,1747859437472,-344.754094,0.00024658,7]
[361872556,1747859437482,-151.0,0.00024658,7]
[361872557,1747859437493,-151.0,0.00024658,7]
[361872558,1747859437503,-158.383955,0.00024658,7]
[361872559,1747859437513,-158.383955,0.00024658,7]
[361872560,1747859437523,-210.41973997,0.00024658,2]
[361872561,1747859437533,-221.440995,0.00024658,7]
[361872562,1747859437543,-206.06106091,0.00024658,2]
[361872563,1747859437552,-500.0,0.00024658,2]
[361872564,1747859437562,-500.0,0.00024658,2]
[361872565,1747859437573,-500.0,0.00024658,2]
[361872566,1747859437583,-500.0,0.00024658,2]
[361872567,1747859437593,-500.0,0.00024658,2]
[361872568,1747859437602,-500.0,0.00024658,2]
[361872569,1747859437612,-596.4866576,0.00024658,2]
[361872570,1747859437622,-500.0,0.00024658,2]
[361872571,1747859437631,-600.0,0.00024658,2]
[361872572,1747859437640,-500.0,0.00024659,2]
[361872573,1747859437652,-500.0,0.00024659,2]
[361872574,1747859437661,-8508.60141387,0.0002466,7]
[361872575,1747859437670,-8508.60141387,0.0002466,7]
[361872576,1747859437680,-151.0,0.0002466,7]
[361872577,1747859437689,-160.0,0.0002466,7]
[361872578,1747859437699,-151.0,0.0002466,7]
[361872579,1747859437708,-151.0,0.0002466,7]
[361872580,1747859437718,-152.059411,0.0002466,7]
[361872581,1747859437729,-151.0,0.0002466,7]
[361872582,1747859437739,-151.0,0.0002466,7]
[361872583,1747859437749,-200.0,0.00024679,120]
[361872584,1747859437758,-2102.7778143,0.00024693,11]
[361872585,1747859437767,-500.0,0.00024699,2]
[361872586,1747859437777,-500.0,0.00024699,2]
[361872587,1747859437787,-520.51656601,0.00024699,2]
[361872588,1747859437798,-613.48,0.00024699,2]
[361872589,1747859437808,-8279.41,0.000247,7]
[361872590,1747859437818,-640.63,0.000247,2]
[361872591,1747859437828,-9885.97,0.000247,7]
[361872592,1747859437838,-151.0,0.000247,9]
[361872593,1747859437848,-151.0,0.000247,7]
[361872594,1747859437858,-434.693514,0.000247,7]
[361872595,1747859437868,-902.010721,0.000247,7]
[361872596,1747859437877,-434.693514,0.000247,7]
[361872597,1747859437887,-902.010721,0.000247,7]
[361872598,1747859437896,-1351.71,0.00024747,2]
[361872599,1747859437907,-151.0,0.0002475,7]
[361872600,1747859437918,-229.58,0.00024776,2]
[361872601,1747859437929,-430.0,0.00024777,2]
[361872602,1747859437939,-466.78,0.00024777,2]
[361872603,1747859437949,-473.4,0.00024777,2]
[361872604,1747859437960,-430.0,0.00024777,2]
[361872605,1747859437972,-915.25,0.00024777,2]
[361872607,1747859437982,-438.69,0.00024777,2]
[361872608,1747859437993,-534.95,0.00024779,2]
[361872609,1747859438002,-430.0,0.00024779,2]
[361872610,1747859438012,-430.0,0.00024779,2]
[361872611,1747859438021,-430.0,0.00024779,2]
[361872612,1747859438031,-430.0,0.00024779,2]
[361872613,1747859438040,-363.5769684,0.00024795,2]
[361872614,1747859438050,-363.5769684,0.00024795,2]
[361872615,1747859438061,-363.5769684,0.00024795,2]
[361872616,1747859438071,-363.5769684,0.00024795,2]
[361872619,1747859438081,-363.5769684,0.00024795,2]
[361872621,1747859438090,-363.5769684,0.00024795,2]
[361872622,1747859438099,-363.5769684,0.00024795,2]
[361872624,1747859438109,-363.5769684,0.00024795,2]
[361872625,1747859438119,-200.0,0.00024795,120]
[361872627,1747859438130,-151.0,0.000248,7]
[361872628,1747859438140,-151.0,0.000248,7]
[361872629,1747859438151,-151.0,0.000248,7]
[361872630,1747859438163,-151.0,0.000248,7]
[361872631,1747859438174,-191.31925,0.000248,7]
[361872632,1747859438183,-191.31925,0.000248,7]
[361872633,1747859438193,-1696.439124,0.000248,7]
[361872634,1747859438202,-1696.439124,0.000248,7]
[361872635,1747859438211,-62535.4459254,0.000248,2]
[361872636,1747859438222,-153.010939,0.000248,7]
[361872637,1747859438232,-153.010939,0.000248,7]
[361872638,1747859438243,-1111.91658,0.000248,7]
[361872639,1747859438253,-1111.91658,0.000248,7]
[361872640,1747859438262,-403.786189,0.000248,7]
[361872641,1747859438272,-403.786189,0.000248,7]
[361872642,1747859438285,-151.0,0.000248,7]
[361872643,1747859438297,-605.89745769,0.00024842,2]
[361872644,1747859438306,-500.0,0.00024844,2]
[361872645,1747859438316,-2102.7778143,0.00024866,12]
[361872646,1747859438325,-500.95780627,0.00024873,2]
[361872647,1747859438335,-500.0,0.00024873,2]
[361872648,1747859438346,-151.0,0.0002489,7]
[361872649,1747859438356,-1099.293196,0.0002489,2]
[361872650,1747859438366,-1099.293196,0.0002489,2]
[361872651,1747859438375,-686.36074,0.0002489,7]
[361872652,1747859438385,-686.36074,0.0002489,7]
[361872653,1747859438394,-151.0,0.000249,7]
[361872654,1747859438404,-151.0,0.000249,7]
[361872655,1747859438414,-151.0,0.000249,7]
[361872656,1747859438424,-151.0,0.000249,7]
[361872657,1747859438434,-151.0,0.000249,7]
[361872658,1747859438444,-295.297231,0.000249,7]
[361872659,1747859438454,-151.0,0.000249,7]
[361872660,1747859438463,-151.0,0.000249,7]
[361872661,1747859438473,-151.0,0.000249,7]
[361872662,1747859438483,-304.193852,0.000249,7]
[361872663,1747859438495,-304.193852,0.000249,7]
[361872664,1747859438506,-151.0,0.000249,7]
[361872665,1747859438515,-151.0,0.000249,7]
[361872666,1747859438525,-151.0,0.000249,7]
[361872667,1747859438543,-151.0,0.000249,7]
[361872668,1747859438559,-151.0,0.000249,7]
[361872669,1747859438569,-1099.293196,0.000249,2]
[361872672,1747859438580,-1099.293196,0.000249,2]
[361872674,1747859438591,-154.683887,0.000249,7]
[361872675,1747859438601,-686.36074,0.000249,7]
[361872676,1747859438610,-686.36074,0.000249,7]
[361872677,1747859438620,-344.754094,0.000249,7]
[361872678,1747859438631,-344.754094,0.000249,7]
[361872679,1747859438641,-151.0,0.000249,7]
[361872680,1747859438651,-151.0,0.000249,7]
[361872681,1747859438661,-158.383955,0.000249,7]
[361872682,1747859438671,-158.383955,0.000249,7]
[361872683,1747859438681,-151.0,0.000249,7]
[361872684,1747859438691,-151.0,0.000249,7]
[361872685,1747859438701,-174.115891,0.000249,7]
[361872686,1747859438711,-151.0,0.000249,7]
[361872687,1747859438722,-151.0,0.000249,7]
[361872688,1747859438732,-434.693514,0.000249,7]
[361872689,1747859438742,-902.010721,0.000249,7]
[361872690,1747859438752,-434.693514,0.000249,7]
[361872691,1747859438762,-902.010721,0.000249,7]
[361872692,1747859438772,-191.31925,0.000249,7]
[361872693,1747859438782,-191.31925,0.000249,7]
[361872694,1747859438792,-1696.439124,0.000249,7]
[361872695,1747859438802,-1696.439124,0.000249,7]
[361872696,1747859438812,-153.010939,0.000249,7]
[361872697,1747859438822,-153.010939,0.000249,7]
[361872698,1747859438832,-494.709629,0.000249,2]
[361872699,1747859438842,-1111.91658,0.000249,7]
[361872700,1747859438852,-1111.91658,0.000249,7]
[361872701,1747859438862,-403.786189,0.000249,7]
[361872702,1747859438871,-403.786189,0.000249,7]
[361872703,1747859438881,-481.05345351,0.000249,2]
[361872704,1747859438890,-151.0,0.000249,7]
[361872705,1747859438899,-151.0,0.00024915,7]
[361872706,1747859438909,-151.631799,0.00024915,7]
[361872707,1747859438919,-151.0,0.00024915,7]
[361872708,1747859438929,-151.0,0.00024915,7]
[361872709,1747859438938,-151.0,0.00024915,7]
[361872710,1747859438948,-456.852901,0.00024915,7]
[361872711,1747859438958,-456.852901,0.00024915,7]
[361872712,1747859438968,-151.0,0.00024915,7]
[361872713,1747859438978,-151.0,0.00024915,7]
[361872714,1747859438987,-151.0,0.00024915,7]
[361872715,1747859438997,-151.0,0.00024915,7]
[361872716,1747859439007,-151.0,0.00024915,7]
[361872717,1747859439016,-151.0,0.00024915,7]
[361872718,1747859439026,-304.193852,0.00024915,7]
[361872719,1747859439036,-304.193852,0.00024915,7]
[361872720,1747859439045,-567.11,0.00024931,2]
[361872721,1747859439055,-536.01,0.00024931,2]
[361872722,1747859439065,-430.0,0.00024931,2]
[361872723,1747859439075,-438.56,0.00024931,2]
[361872724,1747859439086,-430.0,0.00024931,2]
[361872725,1747859439096,-388.0,0.0002497,120]
[361872726,1747859439106,-150.0,0.00024973,2]
[361872727,1747859439116,-500.0,0.00024973,2]
[361872728,1747859439126,-388.0,0.0002498,120]
[361872729,1747859439135,-388.0,0.0002498,120]
[361872731,1747859439145,-388.0,0.0002499,120]
[361872732,1747859439155,-388.0,0.0002499,120]
[361872734,1747859439165,-253.5,0.0002499,120]
[361872736,1747859439175,-151.0,0.0002499,7]
[361872738,1747859439185,-151.0,0.0002499,7]
[361872739,1747859439195,-151.0,0.0002499,7]
[361872740,1747859439206,-151.0,0.0002499,7]
[361872742,1747859439216,-456.852901,0.0002499,7]
[361872743,1747859439227,-456.852901,0.0002499,7]
[361872744,1747859439236,-151.0,0.0002499,7]
[361872745,1747859439246,-151.0,0.0002499,7]
[361872746,1747859439255,-151.0,0.0002499,7]
[361872747,1747859439265,-235.529429,0.0002499,7]
[361872748,1747859439275,-151.0,0.0002499,7]
[361872749,1747859439284,-304.193852,0.0002499,7]
[361872750,1747859439295,-304.193852,0.0002499,7]
[361872751,1747859439305,-16822.46381948,0.00025,2]
[361872752,1747859439315,-1460459.99917324,0.00025,20]
[361872753,1747859439325,-151.0,0.00025,7]
[361872754,1747859439335,-151.0,0.00025,7]
[361872755,1747859439344,-151.0,0.00025,7]
[361872756,1747859439355,-151.0,0.00025,7]
[361872757,1747859439364,-151.0,0.00025,7]
[361872758,1747859439374,-151.0,0.00025,7]
[361872759,1747859439383,-244.908856,0.00025,7]
[361872760,1747859439394,-151.0,0.00025,2]
[361872761,1747859439404,-620724.84,0.00025,7]
[361872762,1747859439413,-151.760983,0.00025,7]
[361872763,1747859439423,-151.0,0.00025,7]
[361872764,1747859439432,-719.0,0.00025,3]
[361872765,1747859439442,-719.0,0.00025,3]
[361872766,1747859439453,-719.0,0.00025,3]
[361872767,1747859439462,-152.0,0.00025,3]
[361872768,1747859439472,-272.90784499,0.00025,3]
[361872769,1747859439481,-152.0,0.00025,3]
[361872770,1747859439493,-152.0,0.00025,3]
[361872771,1747859439503,-152.0,0.00025,3]
[361872772,1747859439513,-152.0,0.00025,3]
[361872773,1747859439523,-152.0,0.00025,3]
[361872774,1747859439533,-152.0,0.00025,3]
[361872775,1747859439543,-187.0,0.00025,3]
[361872776,1747859439553,-151.0,0.00025,7]
[361872777,1747859439564,-151.0,0.00025,7]
[361872778,1747859439574,-151.0,0.00025,7]
[361872779,1747859439584,-151.0,0.00025,7]
[361872780,1747859439594,-151.0,0.00025,7]
[361872781,1747859439603,-151.0,0.00025,7]
[361872782,1747859439613,-456.852901,0.00025,7]
[361872783,1747859439623,-456.852901,0.00025,7]
[361872784,1747859439633,-456.852901,0.00025,7]
[361872785,1747859439643,-456.852901,0.00025,7]
[361872786,1747859439653,-151.0,0.00025,7]
[361872787,1747859439662,-151.0,0.00025,7]
[361872788,1747859439672,-12636.50182523,0.00025,3]
[361872789,1747859439682,-151.0,0.00025,7]
[361872790,1747859439692,-194.334208,0.00025,7]
[361872791,1747859439702,-277.1945,0.00025,7]
[361872792,1747859439712,-151.0,0.00025,7]
[361872793,1747859439722,-151.0,0.00025,7]
[361872794,1747859439731,-160.0,0.00025,3]
[361872795,1747859439740,-151.0,0.00025,7]
[361872796,1747859439750,-151.0,0.00025,7]
[361872797,1747859439760,-151.0,0.00025,7]
[361872798,1747859439770,-304.193852,0.00025,7]
[361872799,1747859439780,-304.193852,0.00025,7]
[361872800,1747859439790,-304.193852,0.00025,7]
[361872801,1747859439799,-304.193852,0.00025,7]
[361872802,1747859439808,-234.210676,0.00025,7]
[361872803,1747859439819,-151.0,0.00025,7]
[361872804,1747859439828,-151.0,0.00025,7]
[361872805,1747859439838,-151.0,0.00025,7]
[361872806,1747859439848,-151.0,0.00025,7]
[361872807,1747859439858,-151.0,0.00025,7]
[361872808,1747859439868,-151.0,0.00025,7]
[361872809,1747859439877,-151.0,0.00025,7]
[361872810,1747859439887,-151.0,0.00025,7]
[361872811,1747859439897,-151.0,0.00025,7]
[361872812,1747859439906,-151.0,0.00025,7]
[361872813,1747859439916,-151.0,0.00025,7]
[361872814,1747859439926,-151.0,0.00025,7]
[361872815,1747859439936,-1099.293196,0.00025,2]
[361872816,1747859439946,-1099.293196,0.00025,2]
[361872817,1747859439955,-1099.293196,0.00025,2]
[361872818,1747859439965,-1099.293196,0.00025,2]
[361872819,1747859439975,-1099.293196,0.00025,2]
[361872821,1747859439984,-1099.293196,0.00025,2]
[361872822,1747859439994,-686.36074,0.00025,7]
[361872823,1747859440003,-686.36074,0.00025,7]
[361872824,1747859440013,-686.36074,0.00025,7]
[361872825,1747859440022,-686.36074,0.00025,7]
[361872826,1747859440032,-686.36074,0.00025,7]
[361872827,1747859440043,-686.36074,0.00025,7]
[361872828,1747859440053,-160.0,0.00025,3]
[361872829,1747859440062,-344.754094,0.00025,7]
[361872830,1747859440072,-344.754094,0.00025,7]
[361872832,1747859440082,-344.754094,0.00025,7]
[361872833,1747859440092,-344.754094,0.00025,7]
[361872834,1747859440103,-344.754094,0.00025,7]
[361872835,1747859440112,-344.754094,0.00025,7]
[361872836,1747859440273,-160.0,0.00025,3]
[361872837,1747859440284,-151.0,0.00025,7]
[361872838,1747859440294,-151.0,0.00025,7]
[361872839,1747859440305,-151.0,0.00025,7]
[361872840,1747859440315,-151.0,0.00025,7]
[361872841,1747859440325,-151.0,0.00025,7]
[361872842,1747859440335,-151.0,0.00025,7]
[361872843,1747859440345,-158.383955,0.00025,7]
[361872845,1747859440357,-158.383955,0.00025,7]
[361872847,1747859440367,-158.383955,0.00025,7]
[361872848,1747859440377,-158.383955,0.00025,7]
[361872849,1747859440386,-158.383955,0.00025,7]
[361872850,1747859440396,-158.383955,0.00025,7]
[361872851,1747859440407,-151.0,0.00025,7]
[361872852,1747859440417,-175.078776,0.00025,7]
[361872853,1747859440427,-151.0,0.00025,7]
[361872854,1747859440437,-151.0,0.00025,7]
[361872855,1747859440446,-151.0,0.00025,7]
[361872856,1747859440456,-151.0,0.00025,7]
[361872858,1747859440465,-151.0,0.00025,7]
[361872859,1747859440474,-151.0,0.00025,7]
[361872861,1747859440484,-434.693514,0.00025,7]
[361872863,1747859440497,-434.693514,0.00025,7]
[361872865,1747859440506,-434.693514,0.00025,7]
[361872867,1747859440516,-902.010721,0.00025,7]
[361872869,1747859440525,-902.010721,0.00025,7]
[361872871,1747859440535,-902.010721,0.00025,7]
[361872873,1747859440544,-434.693514,0.00025,7]
[361872875,1747859440553,-434.693514,0.00025,7]
[361872877,1747859440562,-434.693514,0.00025,7]
[361872879,1747859440573,-902.010721,0.00025,7]
[361872881,1747859440583,-902.010721,0.00025,7]
[361872883,1747859440592,-902.010721,0.00025,7]
[361872885,1747859440602,-2000.0,0.00025,20]
[361872887,1747859440613,-191.31925,0.00025,7]
[361872888,1747859440622,-191.31925,0.00025,7]
[361872891,1747859440631,-191.31925,0.00025,7]
[361872892,1747859440641,-191.31925,0.00025,7]
[361872894,1747859440651,-191.31925,0.00025,7]
[361872896,1747859440661,-191.31925,0.00025,7]
[361872898,1747859440670,-1337.50417267,0.00025,120]
[361872900,1747859440679,-1500.0,0.00025,14]
[361872902,1747859440689,-1500.0,0.00025,14]
[361872904,1747859440698,-1500.0,0.00025,14]
[361872906,1747859440708,-427.298651,0.00025,14]
[361872908,1747859440717,-1696.439124,0.00025,7]
[361872910,1747859440726,-1696.439124,0.00025,7]
[361872912,1747859440735,-1696.439124,0.00025,7]
[361872914,1747859440745,-1696.439124,0.00025,7]
[361872916,1747859440754,-153.010939,0.00025,7]
[361872918,1747859440765,-153.010939,0.00025,7]
[361872920,1747859440774,-153.010939,0.00025,7]
[361872922,1747859440784,-153.010939,0.00025,7]
[361872924,1747859440793,-153.010939,0.00025,7]
[361872926,1747859440803,-153.010939,0.00025,7]
[361872928,1747859440812,-12103.00275502,0.00025,15]
[361872929,1747859440821,-16172.96805205,0.00025,2]
[361872931,1747859440831,-1111.91658,0.00025,7]
[361872933,1747859440841,-1111.91658,0.00025,7]
[361872935,1747859440850,-1111.91658,0.00025,7]
[361872937,1747859440862,-1111.91658,0.00025,7]
[361872939,1747859440872,-1111.91658,0.00025,7]
[361872941,1747859440882,-1111.91658,0.00025,7]
[361872943,1747859440892,-403.786189,0.00025,7]
[361872945,1747859440902,-403.786189,0.00025,7]
[361872947,1747859440912,-403.786189,0.00025,7]
[361872949,1747859440921,-403.786189,0.00025,7]
[361872951,1747859440931,-403.786189,0.00025,7]
[361872953,1747859440940,-403.786189,0.00025,7]
[361872955,1747859440951,-160.0,0.00025,3]
[361872957,1747859440960,-219.137551,0.00025,7]
[361872959,1747859440970,-151.0,0.00025,7]
[361872961,1747859440980,-151.0,0.00025,7]
[361872963,1747859440990,-151.0,0.00025,7]
[361872965,1747859440999,-1351.71,0.00025021,2]
[361872967,1747859441009,-2102.7778143,0.00025038,12]
[361872969,1747859441018,-430.0,0.00025051,2]
[361872971,1747859441028,-473.4,0.00025051,2]
[361872973,1747859441037,-574.65,0.00025051,2]
[361872975,1747859441047,-915.25,0.00025051,2]
[361872977,1747859441056,-534.95,0.00025053,2]
[361872979,1747859441065,-430.0,0.00025053,2]
[361872981,1747859441074,-430.0,0.00025053,2]
[361872983,1747859441083,-430.0,0.00025053,2]
[361872985,1747859441092,-430.0,0.00025053,2]
[361872987,1747859441100,-176.0309214,0.00025068,2]
[361872989,1747859441111,-153.0,0.00025068,2]
[361872991,1747859441119,-569.9163794,0.00025068,2]
[361872993,1747859441129,-158.1465944,0.00025068,2]
[361872995,1747859441138,-158.1465944,0.00025068,2]
[361872997,1747859441147,-176.0309214,0.00025068,2]
[361872999,1747859441156,-569.9163794,0.00025068,2]
[361873001,1747859441168,-158.1465944,0.00025068,2]
[361873003,1747859441177,-176.0309214,0.00025068,2]
[361873005,1747859441186,-569.9163794,0.00025068,2]
[361873007,1747859441195,-153.0,0.00025068,2]
[361873009,1747859441204,-200.0,0.00025133,120]
[361873011,1747859441214,-161.133462,0.00025185,4]
[361873013,1747859441223,-500.0,0.00025194,30]
[361873015,1747859441232,-28220.08804132,0.000252,2]
[361873017,1747859441241,-567.11,0.00025205,2]
[361873018,1747859441250,-536.01,0.00025205,2]
[361873020,1747859441259,-430.0,0.00025205,2]
[361873022,1747859441268,-438.56,0.00025205,2]
[361873024,1747859441278,-334.56,0.00025205,2]
[361873026,1747859441287,-2102.7778143,0.0002521,12]
[361873028,1747859441297,-200.0,0.00025247,120]